bitfinex-derivatives/quotes_BNBF0:USTF0_20250524
["timestamp","ask_amount","ask_price","bid_price","bid_amount"]
[1748129840649,1.06317553,667.9,667.74,0.47634087]
[1748129840948,1.06317553,667.9,667.88,0.4758904]
[1748129841849,1.06317553,667.89,667.88,0.4758904]
[1748129843851,1.06317553,667.89,667.85,0.4758904]
[1748129844852,1.06317553,667.88,667.85,0.4758904]
[1748129845747,1.06317553,667.87,667.85,0.4758904]
[1748129846349,1.06317553,667.87,667.84,0.4758904]
[1748129847355,1.06317553,667.86,667.84,0.4758904]
[1748129848154,1.06317553,667.85,667.84,0.4758904]
[1748129848849,1.06317553,667.85,667.8,0.4758904]
[1748129849355,1.19688148,667.84,667.8,0.4758904]
[1748129849558,1.19688148,667.83,667.8,0.4758904]
[1748129849751,1.19688148,667.82,667.8,0.4758904]
[1748129849955,1.04872224,667.81,667.8,0.4758904]
[1748129850255,2.2454775,667.81,667.8,0.4758904]
[1748129850456,3.30865303,667.81,667.8,0.4758904]
[1748129850656,3.30865303,667.81,667.75,0.4758904]
[1748129850856,2.11189777,667.81,667.75,0.4758904]
[1748129851156,1.04872224,667.8,667.75,0.4758904]
[1748129851353,2.11189777,667.8,667.75,0.4758904]
[1748129851957,1.04872224,667.79,667.75,0.4758904]
[1748129852660,2.11189777,667.78,667.75,0.4758904]
[1748129853060,1.04872224,667.77,667.75,0.4758904]
[1748129853361,1.06317553,667.78,667.75,0.4758904]
[1748129853661,1.06317553,667.78,667.73,0.814]
[1748129853861,1.06317553,667.77,667.73,0.814]
[1748129855564,1.06317553,667.76,667.73,0.814]
[1748129856863,2.10977192,667.75,667.73,0.814]
[1748129857064,1.04659639,667.74,667.73,0.814]
[1748129857562,1.06317553,667.74,667.73,0.814]
[1748129862963,3.93917092,667.74,667.73,0.814]
[1748129863969,3.93751047,667.74,667.73,0.814]
[1748129865765,3.9354772,667.74,667.73,0.814]
[1748129866471,3.30164372,667.74,667.73,0.814]
[1748129867671,3.301038,667.74,667.73,0.814]
[1748129868866,2.10984938,667.74,667.73,0.814]
[1748129869873,1.06317553,667.74,667.73,0.814]
[1748129882880,1.06317553,667.74,667.56,0.4758904]
[1748129883876,1.06317553,667.73,667.56,0.4758904]
[1748129884481,1.06317553,667.73,667.6,0.4758904]
[1748129884781,1.06317553,667.72,667.6,0.4758904]
[1748129885781,1.06317553,667.71,667.6,0.4758904]
[1748129886783,1.06317553,667.7,667.6,0.4758904]
[1748129887283,1.06317553,667.7,667.61,0.4758904]
[1748129887981,1.06317553,667.69,667.61,0.4758904]
[1748129888781,1.06317553,667.68,667.61,0.4758904]
[1748129889383,1.06317553,667.68,667.57,0.84]
[1748129890384,1.06317553,667.67,667.57,0.84]
[1748129890785,2.8641999,667.66,667.57,0.84]
[1748129890984,1.82166443,667.65,667.57,0.84]
[1748129891284,2.88483996,667.64,667.57,0.84]
[1748129891487,2.8641999,667.63,667.57,0.84]
[1748129891787,2.8641999,667.62,667.57,0.84]
[1748129891988,1.82166443,667.61,667.57,0.84]
[1748129892288,1.04253547,667.62,667.57,0.84]
[1748129892289,1.82166443,667.6,667.57,0.84]
[1748129892482,2.8641999,667.59,667.57,0.84]
[1748129892683,1.82127496,667.58,667.57,0.84]
[1748129892886,2.86381043,667.58,667.57,0.84]
[1748129893489,3.92698596,667.58,667.57,0.84]
[1748129894589,3.92668838,667.58,667.57,0.84]
[1748129896391,3.9251208,667.58,667.57,0.84]
[1748129898395,3.92497767,667.58,667.57,0.84]
[1748129899396,3.92497767,667.58,666.67,0.4758904]
[1748129899596,1.81926667,667.57,666.67,0.4758904]
[1748129899898,2.86180214,667.56,666.68,0.4758904]
[1748129900097,1.8190988,667.55,666.68,0.4758904]
[1748129900297,1.8190988,667.54,666.68,0.4758904]
[1748129900498,1.10806438,667.52,666.68,0.4758904]
[1748129900696,1.8190988,667.51,666.68,0.4758904]
[1748129900898,1.8190988,667.5,666.68,0.4758904]
[1748129901094,2.86163427,667.49,666.68,0.4758904]
[1748129901298,1.8190988,667.48,666.65,0.4758904]
[1748129901498,2.86163427,667.47,666.65,0.4758904]
[1748129901697,2.25044931,667.46,666.65,0.4758904]
[1748129901897,1.18727378,667.45,666.66,0.864]
[1748129902198,1.03381844,667.45,666.66,0.864]
[1748129902597,2.09699397,667.44,666.66,0.864]
[1748129903101,1.06317553,667.44,666.66,0.864]
[1748129903400,1.06317553,667.43,666.66,0.864]
[1748129904300,1.06317553,667.42,666.66,0.864]
[1748129905297,1.06317553,667.41,666.66,0.864]
[1748129906802,1.06317553,667.4,666.66,0.864]
[1748129907504,1.06317553,667.39,666.66,0.864]
[1748129908299,1.06317553,667.38,666.66,0.864]
[1748129909605,1.06317553,667.37,666.66,0.864]
[1748129910605,1.06317553,667.36,666.66,0.864]
[1748129911401,1.06317553,667.35,666.66,0.864]
[1748129912502,1.10806438,667.68,666.66,0.864]
[1748129912708,1.10806438,667.61,666.66,0.864]
[1748129912908,2.85868049,667.6,666.66,0.864]
[1748129913111,1.18818816,667.59,666.66,0.864]
[1748129913308,1.18818816,667.58,666.66,0.864]
[1748129913503,1.18818816,667.57,666.66,0.864]
[1748129913708,2.25657009,667.56,666.66,0.864]
[1748129913908,1.06838193,667.56,666.66,0.864]
[1748129914203,1.03790647,667.55,666.66,0.864]
[1748129914404,1.03790647,667.54,666.66,0.864]
[1748129914609,2.1062884,667.54,666.66,0.864]
[1748129915011,2.1062884,667.54,667.05,0.4758904]
[1748129915208,1.03790647,667.53,667.05,0.4758904]
[1748129915405,1.06838193,667.52,667.05,0.4758904]
[1748129916805,1.10806438,667.6,667.05,0.4758904]
[1748129916806,1.06838193,667.51,667.05,0.4758904]
[1748129917406,1.06838193,667.5,667.05,0.4758904]
[1748129917911,1.06838193,667.5,667.13,0.4758904]
[1748129918411,1.06838193,667.49,667.13,0.4758904]
[1748129919414,1.06838193,667.48,667.13,0.4758904]
[1748129919815,1.06838193,667.48,667.01,0.4758904]
[1748129920514,1.06838193,667.47,667.01,0.4758904]
[1748129921217,1.06838193,667.46,667.01,0.4758904]
[1748129921515,1.06838193,667.46,667.07,0.4758904]
[1748129922514,1.06838193,667.45,667.07,0.4758904]
[1748129923018,1.06838193,667.44,667.07,0.4758904]
[1748129923519,1.06838193,667.44,667.1,0.4758904]
[1748129924119,1.06838193,667.43,667.1,0.4758904]
[1748129925115,1.06838193,667.42,667.1,0.4758904]
[1748129926020,1.06838193,667.41,667.1,0.4758904]
[1748129926215,1.06838193,667.41,667.14,0.4758904]
[1748129927115,1.06838193,667.4,667.14,0.4758904]
[1748129928121,1.06838193,667.39,667.14,0.4758904]
[1748129929221,1.06838193,667.38,667.14,0.4758904]
[1748129930424,1.06838193,667.37,667.14,0.4758904]
[1748129930722,1.06838193,667.37,667.18,0.4758904]
[1748129931521,1.06838193,667.36,667.18,0.4758904]
[1748129932423,1.06838193,667.36,667.19,0.4758904]
[1748129932723,1.06838193,667.35,667.19,0.4758904]
[1748129933724,1.06838193,667.34,667.19,0.4758904]
[1748129934624,1.06838193,667.33,667.19,0.4758904]
[1748129935125,1.06838193,667.33,667.3,0.4758904]
[1748129935427,1.06838193,667.32,667.3,0.4758904]
[1748129936727,1.06838193,667.31,667.3,0.4758904]
[1748129939330,1.06838193,667.31,667.05,0.47634087]
[1748129940131,1.06838193,667.3,667.05,0.47634087]
[1748129941034,1.06838193,667.29,667.05,0.47634087]
[1748129941528,1.06838193,667.29,667.03,0.47634087]
[1748129941934,1.06838193,667.28,667.03,0.47634087]
[1748129942931,1.06838193,667.27,667.03,0.47634087]
[1748129943637,1.06838193,667.26,667.03,0.47634087]
[1748129943840,1.06838193,667.26,667.06,0.47634087]
[1748129944739,1.06838193,667.25,667.06,0.47634087]
[1748129945738,1.06838193,667.24,667.06,0.47634087]
[1748129946840,1.06838193,667.23,667.06,0.47634087]
[1748129947941,1.06838193,667.22,667.06,0.47634087]
[1748129948837,1.06838193,667.21,667.06,0.47634087]
[1748129949741,1.06838193,667.21,667.07,0.47634087]
[1748129949937,1.06838193,667.2,667.07,0.47634087]
[1748129951544,1.06838193,667.19,667.07,0.47634087]
[1748129952545,1.06838193,667.18,667.08,0.47634087]
[1748129954547,1.06838193,667.17,667.08,0.47634087]
[1748129955148,1.06838193,667.17,666.96,0.47634087]
[1748129955847,1.06838193,667.16,666.96,0.47634087]
[1748129956755,1.06838193,667.16,666.99,0.47634087]
[1748129957353,1.10806438,667.38,666.99,0.47634087]
[1748129957354,1.06838193,667.15,666.99,0.47634087]
[1748129958453,1.06838193,667.14,666.99,0.47634087]
[1748129959355,1.06838193,667.14,666.93,0.983]
[1748129959356,1.06838193,667.14,666.98,0.47634087]
[1748129959752,1.06838193,667.13,666.98,0.47634087]
[1748129960555,1.06838193,667.12,666.98,0.47634087]
[1748129961658,1.06838193,667.12,666.93,0.983]
[1748129962057,1.10806438,667.32,666.93,0.983]
[1748129962058,1.06838193,667.11,666.93,0.983]
[1748129963160,1.06838193,667.1,666.93,0.983]
[1748129964455,1.06838193,667.09,666.93,0.983]
[1748129965256,1.06838193,667.08,666.93,0.983]
[1748129966465,1.06838193,667.08,667.05,0.47662033]
[1748129966661,3.71490767,668.12,667.05,0.47662033]
[1748129966662,1.06838193,667.07,667.05,0.47662033]
[1748129967657,1.06838193,667.06,667.05,0.47662033]
[1748129968761,1.06838193,667.06,667.03,0.47662033]
[1748129969862,1.06838193,667.05,667.03,0.47662033]
[1748129971164,1.06838193,667.05,666.99,0.47662033]
[1748129971365,1.06838193,667.04,666.99,0.47662033]
[1748129972264,1.06838193,667.03,666.99,0.47662033]
[1748129972962,1.10806438,667.24,666.99,0.47662033]
[1748129973261,2.24747351,667.23,666.96,0.47662033]
[1748129973460,1.19185849,667.22,666.96,0.47662033]
[1748129973658,1.05551091,667.23,666.96,0.47662033]
[1748129973863,2.24736935,667.22,666.96,0.47662033]
[1748129974061,1.19181744,667.21,666.96,0.47662033]
[1748129974359,1.19187841,667.2,666.96,0.47662033]
[1748129974562,1.05551091,667.19,666.96,0.47662033]
[1748129974967,1.05551091,667.18,666.96,0.47662033]
[1748129975267,1.05551091,667.17,666.96,0.47662033]
[1748129975463,1.19150313,667.16,666.96,0.47662033]
[1748129975669,1.19149481,667.15,667.01,0.47662033]
[1748129975868,2.1149214,667.17,667.01,0.47662033]
[1748129976064,2.2470046,667.16,667.01,0.47662033]
[1748129976264,1.19149369,667.15,667.01,0.47662033]
[1748129976466,1.05551091,667.15,667.01,0.47662033]
[1748129976666,1.05941049,667.14,667.01,0.47662033]
[1748129976866,1.05551091,667.13,667.01,0.47662033]
[1748129977167,1.05551091,667.12,667.01,0.47662033]
[1748129977466,1.05551091,667.12,666.93,0.983]
[1748129977668,2.1149214,667.11,666.93,0.983]
[1748129978266,1.05551091,667.1,666.93,0.983]
[1748129978668,1.05941049,667.11,666.93,0.983]
[1748129978868,1.05941049,667.09,666.93,0.983]
[1748129979868,1.05941049,667.08,666.93,0.983]
[1748129980463,1.05941049,667.07,666.93,0.983]
[1748129981367,1.05941049,667.06,666.93,0.983]
[1748129981969,1.05941049,667.05,666.93,0.983]
[1748129982870,1.05340083,667.04,666.93,0.983]
[1748129983271,1.05941049,667.05,666.93,0.983]
[1748129983466,1.05941049,667.03,666.93,0.983]
[1748129984571,1.05941049,667.02,666.93,0.983]
[1748129984873,1.09831198,667.01,666.93,0.983]
[1748129985473,1.09831198,667.0,666.93,0.983]
[1748129985669,2.15772247,667.0,666.93,0.983]
[1748129986271,1.05941049,667.0,666.93,0.983]
[1748129986573,1.05941049,666.99,666.93,0.983]
[1748129987769,1.05941049,666.98,666.93,0.983]
[1748129988774,1.05941049,666.97,666.93,0.983]
[1748129989674,1.05941049,666.96,666.93,0.983]
[1748129990475,1.05941049,666.95,666.93,0.983]
[1748129991374,1.05941049,666.94,666.93,0.983]
[1748129992074,1.05941049,666.94,666.79,0.47662033]
[1748129992376,1.10806438,667.15,666.79,0.47662033]
[1748129992574,1.18824672,667.14,666.79,0.47662033]
[1748129992774,2.28609125,667.13,666.79,0.47662033]
[1748129992970,2.28609125,667.12,666.79,0.47662033]
[1748129993172,1.09784453,667.12,666.79,0.47662033]
[1748129993675,1.0554203,667.11,666.79,0.47662033]
[1748129993872,2.15326483,667.11,666.79,0.47662033]
[1748129994475,2.15326483,667.1,666.79,0.47662033]
[1748129995077,1.09784453,667.09,666.8,0.756]
[1748129995377,1.09784453,667.08,666.8,0.756]
[1748129995572,1.09784453,667.07,666.8,0.756]
[1748129996276,1.09784453,667.06,666.8,0.756]
[1748129996476,1.0554203,667.05,666.8,0.756]
[1748129996776,1.09784453,667.04,666.8,0.756]
[1748129996973,1.09784453,667.03,666.8,1.23262033]
[1748129997476,1.0554203,667.05,666.8,1.23262033]
[1748129997477,2.15326483,667.02,666.8,1.23262033]
[1748129998076,1.09784453,667.01,666.8,1.23262033]
[1748129998778,1.0554203,667.0,666.8,1.23262033]
[1748129999576,1.0554203,666.99,666.8,1.23262033]
[1748130000177,1.0554203,666.98,666.83,0.47662033]
[1748130001280,1.0554203,666.97,666.83,0.47662033]
[1748130002279,1.0554203,666.97,666.84,0.47662033]
[1748130002476,1.0554203,666.96,666.84,0.47662033]
[1748130003481,1.0554203,666.95,666.84,0.47662033]
[1748130004376,1.0554203,666.94,666.9,0.47662033]
[1748130005482,1.10806438,667.16,666.9,0.47662033]
[1748130005781,2.28424301,667.15,666.9,0.47662033]
[1748130005980,1.18838073,667.14,666.9,0.47662033]
[1748130006181,2.28424301,667.13,666.9,0.47662033]
[1748130006382,1.18838073,667.12,666.9,0.47662033]
[1748130006578,2.28430706,667.11,666.9,0.47662033]
[1748130006783,2.14887919,667.11,666.91,0.47662033]
[1748130006983,1.09586228,667.1,666.91,0.47662033]
[1748130007483,1.09586228,667.09,666.91,0.47662033]
[1748130007780,2.14887919,667.09,666.91,0.47662033]
[1748130008083,1.09586228,667.08,666.91,0.47662033]
[1748130008479,1.09586228,667.07,666.91,0.47662033]
[1748130008783,1.05301691,667.06,666.91,0.47662033]
[1748130009079,1.09586228,667.05,666.91,0.47662033]
[1748130009384,1.09586228,667.05,666.9,0.47662033]
[1748130009586,1.09586228,667.04,666.9,0.47662033]
[1748130009781,1.09586228,667.03,666.9,0.47662033]
[1748130010081,2.14887919,667.03,666.9,0.47662033]
[1748130010282,1.09586228,667.02,666.9,0.47662033]
[1748130010888,1.09586228,667.01,666.9,0.47662033]
[1748130011089,1.05301691,667.0,666.9,0.47662033]
[1748130011587,1.05301691,667.0,666.91,0.47662033]
[1748130011984,1.05301691,666.99,666.91,0.47662033]
[1748130012992,1.05301691,666.98,666.91,0.47662033]
[1748130013791,1.05301691,666.97,666.92,0.47662033]
[1748130014691,1.05301691,666.96,666.92,0.47662033]
[1748130015694,1.05301691,666.96,666.91,0.47662033]
[1748130015994,1.05301691,666.95,666.91,0.47662033]
[1748130017092,1.05301691,666.94,666.91,0.47662033]
[1748130017395,1.05301691,666.94,666.93,0.47662033]
[1748130019496,1.05301691,666.94,666.8,0.756]
[1748130020799,1.05301691,666.93,666.8,0.756]
[1748130021798,1.05301691,666.92,666.8,0.756]
[1748130023001,1.05301691,666.91,666.8,0.756]
[1748130024202,1.05301691,666.9,666.8,0.756]
[1748130025203,1.05301691,666.89,666.8,0.756]
[1748130026305,1.05301691,666.88,666.8,0.756]
[1748130027605,1.05301691,666.87,666.8,0.756]
[1748130028706,1.05301691,666.86,666.8,0.756]
[1748130029707,1.05301691,666.85,666.8,0.756]
[1748130030907,1.05301691,666.84,666.8,0.756]
[1748130031802,1.05301691,666.83,666.8,0.756]
[1748130032906,1.05301691,666.82,666.8,0.756]
[1748130033906,1.05301691,666.81,666.8,0.756]
[1748130038209,1.05301691,666.81,666.67,0.47634087]
[1748130038509,1.05301691,666.81,666.7,0.47634087]
[1748130039009,1.05301691,666.8,666.7,0.47634087]
[1748130039808,1.05301691,666.79,666.7,0.47634087]
[1748130040809,1.05301691,666.78,666.7,0.47634087]
[1748130041109,1.05301691,666.78,666.73,0.47634087]
[1748130041711,1.05301691,666.77,666.73,0.47634087]
[1748130042610,1.10806438,666.96,666.73,0.47634087]
[1748130042809,1.19434625,666.95,666.73,0.47634087]
[1748130043012,1.10806438,666.96,666.65,0.86802532]
[1748130043611,1.02674638,666.95,666.65,0.86802532]
[1748130043908,1.23797313,666.94,666.65,0.86802532]
[1748130044112,1.23797313,666.93,666.65,0.86802532]
[1748130044311,1.23797313,666.92,666.65,0.86802532]
[1748130044512,1.23797313,666.91,666.65,0.86802532]
[1748130044712,2.29298166,666.9,666.65,0.86802532]
[1748130044911,1.23891724,666.89,666.65,0.86802532]
[1748130045109,1.05500853,666.9,666.65,0.86802532]
[1748130045314,1.05500853,666.9,666.67,0.47732237]
[1748130045315,1.2389161,666.89,666.67,0.47732237]
[1748130045613,1.05500853,666.9,666.67,0.47732237]
[1748130045814,1.23894894,666.89,666.67,0.47732237]
[1748130046013,1.05500853,666.9,666.67,0.47732237]
[1748130046215,2.29395194,666.89,666.67,0.47732237]
[1748130046515,1.05500853,666.89,666.67,0.47732237]
[1748130047116,1.05500853,666.88,666.67,0.47732237]
[1748130047317,1.05500853,666.88,666.64,0.951]
[1748130048317,1.05500853,666.87,666.64,0.951]
[1748130049821,1.05500853,666.86,666.64,0.951]
[1748130051327,1.05500853,666.85,666.64,0.951]
[1748130052326,1.05500853,666.84,666.64,0.951]
[1748130053432,1.05500853,666.83,666.64,0.951]
[1748130054031,1.05500853,666.83,666.8,0.47732237]
[1748130054230,1.05500853,666.82,666.8,0.47732237]
[1748130055328,1.05500853,666.81,666.8,0.47732237]
[1748130058628,1.05500853,666.81,666.79,0.47732237]
[1748130058933,1.05500853,666.8,666.79,0.47732237]
[1748130060927,1.05500853,666.8,666.65,0.39701647]
[1748130060928,1.05500853,666.8,666.76,0.47732237]
[1748130061635,1.05500853,666.79,666.76,0.47732237]
[1748130062336,1.05500853,666.78,666.76,0.47732237]
[1748130063030,1.10806438,666.97,666.76,0.47732237]
[1748130063234,1.10806438,666.97,666.77,0.47732237]
[1748130064235,1.05283303,666.96,666.77,0.47732237]
[1748130065234,1.05283303,666.95,666.77,0.47732237]
[1748130065435,1.05283303,666.95,666.64,0.951]
[1748130066432,1.05283303,666.94,666.64,0.951]
[1748130067234,1.05283303,666.93,666.64,0.951]
[1748130068437,1.05283303,666.92,666.64,0.951]
[1748130069339,1.05283303,666.91,666.64,0.951]
[1748130070235,1.05283303,666.9,666.64,0.951]
[1748130071240,1.05283303,666.89,666.64,0.951]
[1748130072244,1.05283303,666.88,666.64,1.42803941]
[1748130073343,1.10806438,667.14,666.64,1.42803941]
[1748130073542,2.27087514,667.13,666.64,1.42803941]
[1748130073742,1.23772883,667.12,666.64,1.42803941]
[1748130073944,1.23772883,667.11,666.64,0.951]
[1748130074142,1.23772883,667.1,666.64,0.951]
[1748130074338,1.23772883,667.09,666.64,0.951]
[1748130074636,1.10806438,667.14,666.64,0.951]
[1748130074843,1.04683677,667.08,666.64,0.951]
[1748130075742,1.04683677,667.07,666.98,0.47639435]
[1748130076843,1.04683677,667.06,666.98,0.47639435]
[1748130077839,1.04683677,667.05,666.98,0.47639435]
[1748130078042,1.04683677,667.05,666.97,0.47639435]
[1748130078745,1.04683677,667.04,666.97,0.47639435]
[1748130079843,1.10806438,667.22,666.97,0.47639435]
[1748130080047,2.27065418,667.21,666.69,0.47732237]
[1748130080242,1.23684639,667.2,666.69,0.47732237]
[1748130080445,1.23684639,667.19,666.69,0.47732237]
[1748130080646,1.23684639,667.18,666.69,0.47732237]
[1748130080946,1.10806438,667.22,666.69,0.47732237]
[1748130081148,1.04546139,667.17,666.69,0.47732237]
[1748130081843,1.04546139,667.17,666.96,0.47585964]
[1748130082042,1.04546139,667.16,666.96,0.47585964]
[1748130082546,1.23605364,667.15,666.96,0.47585964]
[1748130082746,1.23605364,667.14,666.96,0.47585964]
[1748130082948,2.28151503,667.13,666.96,0.47585964]
[1748130083248,1.23603681,667.12,666.96,0.47585964]
[1748130083449,1.04546139,667.13,666.96,0.47585964]
[1748130083649,1.23614157,667.12,666.96,0.47585964]
[1748130083950,1.04546139,667.13,666.96,0.47585964]
[1748130084249,1.23614794,667.12,666.96,0.47585964]
[1748130084450,1.04546139,667.11,666.71,0.47585964]
[1748130085349,1.04546139,667.1,666.71,0.47585964]
[1748130085950,1.04546139,667.09,666.71,0.47585964]
[1748130086745,1.04546139,667.09,666.64,0.951]
[1748130086746,1.04546139,667.09,666.68,0.47585964]
[1748130087349,1.04546139,667.08,666.68,0.47585964]
[1748130088047,1.04546139,667.07,666.68,0.47585964]
[1748130088646,1.04546139,667.07,666.69,0.47585964]
[1748130089047,1.04546139,667.06,666.69,0.47585964]
[1748130089950,1.04546139,667.06,666.7,0.47585964]
[1748130090151,1.04546139,667.05,666.7,0.47585964]
[1748130091353,1.04546139,667.04,666.7,0.47585964]
[1748130092454,1.04546139,667.03,666.7,0.47585964]
[1748130092655,1.04546139,667.03,666.75,0.47585964]
[1748130093656,1.04546139,667.02,666.75,0.47585964]
[1748130094758,1.04546139,667.01,666.75,0.47585964]
[1748130095260,1.04546139,667.01,666.81,0.47732237]
[1748130095858,1.04546139,667.0,666.81,0.47732237]
[1748130097258,1.04546139,666.99,666.81,0.47732237]
[1748130097555,1.04546139,666.99,666.83,0.47732237]
[1748130098459,1.10806438,667.18,666.83,0.47732237]
[1748130098661,1.23589357,667.17,666.83,0.47732237]
[1748130098956,1.87010396,667.16,666.83,0.47732237]
[1748130099164,1.87010396,667.15,666.83,0.47732237]
[1748130099356,2.90174453,667.14,666.83,0.47732237]
[1748130099660,1.87010396,667.13,666.83,0.47732237]
[1748130099858,2.90174453,667.12,666.85,0.47732237]
[1748130100056,1.87010396,667.11,666.85,0.47732237]
[1748130100259,1.87010396,667.1,666.85,0.47732237]
[1748130100456,2.90174453,667.09,666.85,0.47732237]
[1748130100662,1.87010396,667.08,666.85,0.47732237]
[1748130100862,1.87010396,667.07,666.85,0.47732237]
[1748130101059,2.90174453,667.06,666.85,0.47732237]
[1748130101262,2.90174453,667.05,666.85,0.47732237]
[1748130101467,1.87010396,667.04,666.5,0.47662838]
[1748130101659,2.90174453,667.03,666.5,0.47662838]
[1748130101862,1.23543322,667.02,666.51,1.077]
[1748130102062,2.26707379,667.01,666.51,1.077]
[1748130102257,1.23543322,667.0,666.51,1.077]
[1748130102460,1.23543322,666.99,666.51,1.077]
[1748130102665,1.23543322,666.98,666.51,1.077]
[1748130102866,1.23543322,666.97,666.51,1.077]
[1748130103063,1.23543322,666.96,666.51,1.077]
[1748130103360,2.26707379,666.95,666.51,1.077]
[1748130103571,1.23543322,666.94,666.51,1.077]
[1748130103869,1.23543322,666.93,666.51,1.077]
[1748130104066,1.03164057,666.92,666.51,1.077]
[1748130104566,1.03164057,666.91,666.51,1.077]
[1748130104766,2.07651636,666.91,666.51,1.077]
[1748130105069,1.04487579,666.91,666.51,1.077]
[1748130105368,1.04487579,666.91,666.66,0.47662838]
[1748130105962,1.10806438,667.04,666.66,0.47662838]
[1748130105963,1.04487579,666.9,666.66,0.47662838]
[1748130107470,1.04487579,666.89,666.66,0.47662838]
[1748130107669,1.04487579,666.89,666.63,0.47662838]
[1748130108768,1.04487579,666.88,666.63,0.47662838]
[1748130109264,1.04487579,666.87,666.63,0.47662838]
[1748130109469,1.04487579,666.87,666.6,0.47662838]
[1748130109969,1.04487579,666.86,666.6,0.47662838]
[1748130110868,1.04487579,666.85,666.6,0.47662838]
[1748130111468,1.04487579,666.85,666.59,0.47662838]
[1748130111775,1.10806438,667.06,666.59,0.47662838]
[1748130112772,1.05554985,667.05,666.59,0.47662838]
[1748130113173,1.05554985,667.05,666.93,0.47662838]
[1748130114075,1.05554985,667.04,666.93,0.47662838]
[1748130114877,1.05554985,667.04,666.84,0.47662838]
[1748130115371,1.05554985,667.03,666.84,0.47662838]
[1748130116176,1.05554985,667.02,666.84,0.47662838]
[1748130116371,1.05554985,667.02,666.85,0.47662838]
[1748130117477,1.05554985,667.01,666.85,0.47662838]
[1748130117778,1.05554985,667.01,666.87,0.47662838]
[1748130118180,1.10806438,667.24,666.87,0.47662838]
[1748130118577,1.07400051,667.23,666.87,0.47662838]
[1748130118771,1.10806438,667.24,666.87,0.47662838]
[1748130119480,1.05559835,667.23,666.87,0.47662838]
[1748130119881,1.05559835,667.23,666.7,0.47662838]
[1748130120481,1.05559835,667.22,666.7,0.47662838]
[1748130121780,0.26080505,667.93,666.7,0.47662838]
[1748130121781,1.05559835,667.21,666.7,0.47662838]
[1748130122280,1.05559835,667.21,666.51,1.077]
[1748130122281,1.07368471,667.2,666.73,0.47662838]
[1748130122682,1.05559835,667.21,666.73,0.47662838]
[1748130122982,1.05559835,667.2,666.73,0.47662838]
[1748130123984,2.2289446,667.78,666.73,0.47662838]
[1748130123985,1.05559835,667.19,666.73,0.47662838]
[1748130124184,1.05559835,667.19,666.51,1.077]
[1748130124185,1.05559835,667.19,666.65,0.47662838]
[1748130124886,1.05559835,667.18,666.65,0.47662838]
[1748130126088,1.05559835,667.18,666.68,0.47662838]
[1748130126489,1.05559835,667.17,666.68,0.47662838]
[1748130127791,1.05559835,667.16,666.68,0.47662838]
[1748130128491,1.05559835,667.16,666.66,0.47662838]
[1748130129094,1.05559835,667.15,666.66,0.47662838]
[1748130129990,1.05559835,667.14,666.66,0.47662838]
[1748130130989,1.05559835,667.13,666.66,0.47662838]
[1748130131391,1.05559835,667.13,666.79,0.47662838]
[1748130131996,1.10806438,667.38,666.79,0.47662838]
[1748130132196,1.86765603,667.37,666.79,0.47662838]
[1748130132395,1.10806438,667.38,666.79,0.47662838]
[1748130132396,2.94037462,667.36,666.79,0.47662838]
[1748130132592,1.86765603,667.35,666.79,0.47662838]
[1748130132792,2.30708304,667.34,666.79,0.47662838]
[1748130132997,1.23433958,667.33,666.97,0.47662838]
[1748130133196,2.30705817,667.32,666.97,0.47662838]
[1748130133397,1.23433958,667.31,666.97,0.47662838]
[1748130133591,1.23433958,667.3,666.97,0.47662838]
[1748130133794,2.28766408,667.29,666.97,0.47662838]
[1748130134092,1.23433958,667.28,666.97,0.47662838]
[1748130134294,1.23433958,667.27,666.97,0.47662838]
[1748130134497,1.07271859,667.28,666.97,0.47662838]
[1748130134699,2.30684726,667.27,666.97,0.47662838]
[1748130134994,2.28747433,667.26,666.97,0.47662838]
[1748130135298,1.07271859,667.25,666.97,0.47662838]
[1748130135598,1.0533245,667.26,666.97,0.47662838]
[1748130135897,1.0533245,667.25,666.97,0.47662838]
[1748130137300,1.0533245,667.24,666.97,0.47662838]
[1748130138096,1.0533245,667.23,666.97,0.47662838]
[1748130139105,1.23376932,667.22,666.97,0.47662838]
[1748130139304,1.23376932,667.21,666.97,0.47662838]
[1748130139503,1.0533245,667.22,666.97,0.47662838]
[1748130139705,1.23377848,667.21,666.97,0.47662838]
[1748130139999,1.23377049,667.2,666.97,0.47662838]
[1748130140203,2.12610741,667.19,666.97,0.47662838]
[1748130140602,1.07278291,667.18,666.97,0.47662838]
[1748130140803,1.07278291,667.18,666.93,0.47662838]
[1748130140998,1.07278291,667.17,666.93,0.47662838]
[1748130141303,1.0533245,667.19,666.93,0.47662838]
[1748130141504,1.0533245,667.16,666.93,0.47662838]
[1748130142906,1.0533245,667.16,666.96,0.47662838]